[Event "Israeli Team-ch 2023"]
[Site "Petah Tikva"]
[Date "2023.01.13"]
[Round "2.25"]
[White "Bernadskiy, Vitaliy"]
[Black "Mesropov, Konstantin"]
[Result "1-0"]
[ECO "C18"]
[WhiteElo "2609"]
[BlackElo "2437"]
[Annotator "TA"]
[PlyCount "127"]
[EventDate "2023.01.13"]
[EventCountry "ISR"]
[SourceTitle "playchess.com"]
[Source "ChessBase"]
[SourceQuality "1"]
[TimeControl "40/5400+30:1800+30"]

{[%evp 17,127,13,20,16,27,20,25,20,29,39,39,29,27,30,34,31,32,19,43,28,39,13,16,15,37,16,34,33,28,16,29,24,64,0,26,0,0,0,86,83,81,33,150,138,158,141,160,157,161,141,156,143,168,143,143,125,424,357,408,321,358,317,540,440,616,560,687,675,627,527,718,731,722,716,1052,1005,1269,1261,1195,1192,1047,997,868,962,942,921,1981,1783,29971,29966,3261,3111,29979,29980,29980,29981,29986,29982,29982,29983,29983,29984,29984,29985,29985,29986,29986,29984,29984,29985,29985,29986]} 1. e4 {[%emt 0:00:03]} e6 {[%emt 0:00:10]} 2. d4 {[%emt 0:00:08]} d5 {[%emt 0:00:23]} 3. Nc3 {[%emt 0:00:22]} Bb4 {[%emt 0:01:17]} 4. e5 {[%emt 0:00:08]} c5 {[%emt 0:00:52]} 5. a3 {[%emt 0:00:06]} Ba5 {[%emt 0:00:24]} 6. b4 {[%emt 0:00:21]} cxd4 {[%emt 0:02:02]} 7. Nb5 {[%emt 0:00:04]} Bc7 {[%emt 0:02:46]} 8. f4 {[%emt 0:00:07]} Bd7 {[%emt 0:03:28]} 9. Nxc7+ {[%emt 0:06:21]} Qxc7 {[%emt 0:01:04]} 10. Bd3 {[%emt 0:00:04] C18: French: 3 Nc3 Bb4: Main line: 7 h4 and 7 Qg4.} Ne7 {[%emt 0:09:59]} 11. Nf3 {[%emt 0:01:18]} Ba4 {[%emt 0:00:59]} 12. O-O {[%emt 0:00:45] White has an edge.} a6 {[%emt 0:03:08]} 13. Nxd4 {[%emt 0:09:02]} Nbc6 {[%emt 0:00:52]} 14. Be3 {[%emt 0:00:07][%cal Bc1e3,Be3d4,Bd4f2][%mdl 32]} Nxd4 {[%emt 0:05:41]} 15. Bxd4 {[%emt 0:02:35]} Bb5 {[%emt 0:02:39] Black is weak on the dark squares} 16. a4 {[%emt 0:05:54]} Bxd3 {[%emt 0:02:14]} 17. cxd3 {[%emt 0:00:46]} Nf5 {[%emt 0:01:44]} 18. Rc1 {[%emt 0:01:09]} Qd8 {[%emt 0:00:19] [#]} 19. Bf2 $146 {[%emt 0:00:20]} ({Predecessor:} 19. Bc5 b6 20. Bf2 d4 21. g4 Ne3 22. Bxe3 dxe3 23. Qe2 Qh4 {½-½ Pommrich,R (2139)-Rahde,F (2251) EU-ch 2019 pr02 email}) 19... d4 {[%emt 0:01:48]} 20. Qf3 {[%emt 0:01:40]} O-O {[%emt 0:09:37]} 21. g4 {[%emt 0:03:03]} Ne3 {[%emt 0:03:47]} 22. Bxe3 {[%emt 0:00:09]} dxe3 {[%emt 0:00:04]} 23. Qxe3 {[%emt 0:00:37]} Qd7 {[%emt 0:02:01]} 24. a5 $36 {[%emt 0:06:53][%mdl 2048] Black is under pressure.} Rad8 {[%emt 0:45:12][%cal Od8c8]} 25. Rf3 {[%emt 0:00:43] White is more active.} (25. Qe4 $14) 25... Rc8 {[%emt 0:00:00]} 26. Rxc8 {[%emt 0:06:00]} Rxc8 $11 {[%emt 0:00:00][%mdl 4096] Endgame KQR-KQR} 27. f5 {[%emt 0:00:07]} Qa4 {[%emt 0:00:00]} (27... h6 $11 {remains equal.}) 28. fxe6 $16 {[%emt 0:02:49]} fxe6 {[%emt 0:00:00]} 29. Qf4 {[%emt 0:00:14]} Qd7 {[%emt 0:00:00] [#] Against Qf7+} ({Black should play} 29... h6 $14) 30. g5 $1 {[%emt 0:01:35]} Rd8 {[%emt 0:00:00] [#]} 31. Kg2 $1 {[%emt 0:00:43]} Qe8 {[%emt 0:00:00]} 32. h4 {[%emt 0:02:01]} Qg6 {[%emt 0:00:00]} 33. Kf2 {[%emt 0:01:08]} Qe8 {[%emt 0:00:00]} 34. Ke2 {[%emt 0:02:57]} Qg6 {[%emt 0:00:00]} 35. Kd2 {[%emt 0:02:30]} Rc8 {[%emt 0:00:00]} 36. Ke3 {[%emt 0:05:16]} h5 $2 {[%emt 0:01:13][%mdl 8192] A mistake that costs the game.} (36... Qe8 $16 37. Rf1 Qd7) 37. Qe4 $18 {[%emt 0:03:47]} Qe8 {[%emt 0:03:10]} 38. Qxb7 {[%emt 0:01:45]} Rb8 {[%emt 0:00:17]} 39. Qe4 {[%emt 0:00:58]} (39. Qxa6 Rxb4 40. Rf4 Rb5 $18) 39... Qe7 $2 {[%emt 0:00:36]} (39... Qa4 {is a better defense.} 40. g6 Qa1) 40. Rf4 {[%emt 0:00:16]} Qc7 {[%emt 0:01:48]} 41. Kd2 {[%emt 0:32:37] Inhibits Qc3+.} Rc8 {[%emt 0:05:06] ( -> ...Qc1+)} 42. Qc4 {[%emt 0:00:00] Wards off Qc1+} Qd7 {[%emt 0:00:10]} 43. Rd4 {[%emt 0:00:00]} Qe8 {[%emt 0:04:22]} 44. Qxa6 {[%emt 0:00:00]} Kh7 {[%emt 0:01:14]} 45. Qb7 {[%emt 0:00:00] aiming for Rd7.} Qf8 {[%emt 0:01:26]} 46. Qe4+ {[%emt 0:00:00]} Kh8 {[%emt 0:00:14]} 47. Qf4 {[%emt 0:00:00] Qxf8+ would kill now.} Qe8 {[%emt 0:00:26]} 48. Rc4 {[%emt 0:00:00] Intending Rxc8 and mate.} Rd8 {[%emt 0:00:17]} 49. Kc3 {[%emt 0:00:00]} Qa4 {[%emt 0:01:10]} 50. Kb2 {[%emt 0:00:00]} Qd1 {[%emt 0:00:56]} 51. Qe4 {[%emt 0:00:00]} g6 {[%emt 0:04:24]} 52. Rc1 {[%emt 0:00:00]} ({Worse is} 52. Qxg6 Qd2+ 53. Kb1 Qd1+ 54. Kb2 Qd2+ 55. Kb3 Rxd3+ 56. Ka4 Ra3+ 57. Kxa3 Qa2+ 58. Kxa2 $11) 52... Qd2+ {[%emt 0:02:05]} 53. Rc2 {[%emt 0:00:00]} Qd1 {[%emt 0:00:03]} 54. a6 {[%emt 0:00:00] White threatens a7 and mate.} Qg1 {[%emt 0:00:56]} 55. Qf4 {[%emt 0:00:00] White mates.} Kg8 {[%emt 0:00:53]} 56. Rf2 {[%emt 0:00:00]} Rc8 {[%emt 0:01:38]} 57. Qf7+ {[%emt 0:00:00]} Kh8 {[%emt 0:00:02]} 58. Qf6+ {[%emt 0:00:00]} ({And not} 58. Ka2 Rc2+ 59. Rxc2 Qa1+ 60. Kxa1 $11 (60. Kb3 Qa3+ 61. Kc4 Qxb4+ 62. Kxb4 $11)) 58... Kh7 {[%emt 0:00:14]} 59. Qe7+ {[%emt 0:00:00]} Kh8 {[%emt 0:00:06]} 60. Rf8+ {[%emt 0:00:00]} Rxf8 {[%emt 0:00:03]} 61. Qxf8+ {[%emt 0:00:00]} Kh7 {[%emt 0:00:02]} 62. Qh6+ {[%emt 0:00:00]} Kg8 {[%emt 0:00:04]} 63. Qxg6+ {[%emt 0:00:00]} Kf8 {[%emt 0:00:13]} 64. Qf6+ {[%emt 0:00:00] Weighted Error Value: White=0.12 (very precise) /Black=0.49} 1-0

[Event "Israeli Team-ch 2023"]
[Site "Petah Tikva"]
[Date "2023.01.13"]
[Round "2.26"]
[White "Soffer, Ram"]
[Black "Manor, Ilan"]
[Result "0-1"]
[ECO "B06"]
[WhiteElo "2475"]
[BlackElo "2464"]
[Annotator "TA"]
[PlyCount "100"]
[EventDate "2023.01.13"]
[EventCountry "ISR"]
[SourceTitle "playchess.com"]
[Source "ChessBase"]
[SourceQuality "1"]
[TimeControl "40/5400+30:1800+30"]

{[%evp 9,100,21,23,16,43,9,25,30,22,20,21,0,0,0,26,18,9,28,29,16,32,0,0,0,0,-6,0,0,0,0,0,0,0,0,0,0,0,0,0,0,0,-50,-40,-48,-37,-99,-111,-96,-117,-310,-52,-72,-65,-68,-64,-189,-189,-205,-205,-205,-204,-199,-199,-199,-198,-283,-252,-606,-921,-704,-612,-4682,-5604,-3256,-2567,-1532,-1484,-5093,-2360,-11114,-10777,-10777,-9728,-6916,-1007,-7345,-6515,-5666,-5208,-8442,-4627,-29960,-29959]} 1. e4 {[%emt 0:00:04]} g6 {[%emt 0:06:44]} 2. d4 {[%emt 0:00:41]} Bg7 {[%emt 0:00:47]} 3. Nc3 {[%emt 0:00:15]} d6 {[%emt 0:00:32]} 4. g3 {[%emt 0:00:22]} Nc6 {[%emt 0:05:41]} 5. Be3 {[%emt 0:04:55]} Nf6 {[%emt 0:08:42]} 6. h3 {[%emt 0:00:57] Prevents Ng4. B06: Modern Defence.} e5 {[%emt 0:00:46]} 7. Nge2 {[%emt 0:00:34]} d5 {[%emt 0:01:09]} 8. Bg2 {[%emt 0:07:52][%cal Re4d5] [#] White has an edge.} Be6 $146 {[%emt 0:07:42]} ({Predecessor:} 8... Nxe4 9. dxe5 Nxc3 10. Nxc3 O-O 11. Qxd5 Bxe5 12. O-O-O Qf6 13. Qc5 Bxc3 14. bxc3 Be6 {½-½ Danin,A (2559)-Onischuk,V (2610) Dresden ZMD op 2017 (7)}) 9. dxe5 {[%emt 0:06:41]} Nxe4 {[%emt 0:00:11]} 10. Nxe4 {[%emt 0:00:17]} dxe4 {[%emt 0:00:04]} 11. Nd4 {[%emt 0:05:40]} Bd5 {[%emt 0:07:10] [#]} 12. c4 $1 {[%emt 0:08:41][%mdl 64] Deflection} Bxc4 {[%emt 0:02:44]} 13. Nxc6 {[%emt 0:01:08]} (13. Bxe4 Nxe5 14. Qa4+ b5 $17) 13... bxc6 {[%emt 0:02:27]} 14. Bxe4 {[%emt 0:00:29]} O-O {[%emt 0:05:56]} 15. Qxd8 {[%emt 0:03:06]} (15. Bxc6 Bxe5 16. Qc2 Bd3 $15) (15. f4 $5 {[%cal Re4c6]}) 15... Raxd8 {[%emt 0:04:07]} 16. f4 {[%emt 0:00:56]} f6 {[%emt 0:00:44]} 17. Bc5 {[%emt 0:20:12]} ({Of course not} 17. Bxc6 fxe5 18. Bc5 Rf5 $17) 17... Rfe8 {[%emt 0:08:50]} 18. Bxc6 {[%emt 0:05:14]} ({But not} 18. Bxa7 fxe5 19. Rc1 Bd5 20. Bxd5+ cxd5 $17) 18... Re6 {[%emt 0:05:46]} 19. Be4 {[%emt 0:00:49]} fxe5 {[%emt 0:02:15]} 20. f5 {[%emt 0:00:06]} gxf5 {[%emt 0:05:04]} 21. Bxf5 {[%emt 0:00:05]} Ree8 {[%emt 0:00:07]} 22. b3 {[%emt 0:04:50]} Bd3 {[%emt 0:08:46]} 23. Bxd3 {[%emt 0:04:48]} Rxd3 {[%emt 0:00:05]} 24. Rd1 {[%emt 0:00:45]} Rc3 {[%emt 0:02:27]} 25. b4 {[%emt 0:01:51]} (25. Bb4 $11 Rc2 26. Rd2 Rc1+ 27. Rd1) 25... e4 {[%emt 0:02:59]} 26. Rh2 {[%emt 0:02:01]} Rxg3 {[%emt 0:00:56]} 27. Bxa7 {[%emt 0:01:43]} (27. Kf2 $15 Rd3 28. Ke2) 27... Bc3+ $17 {[%emt 0:01:08]} 28. Kf2 {[%emt 0:01:59]} Rf3+ {[%emt 0:01:41]} 29. Ke2 $2 {[%emt 0:00:05]} (29. Kg1 $17 {is the only way for White.}) 29... Bxb4 $2 {[%emt 0:02:03]} ({Black should play} 29... Ra8 $1 $19 {[%cal Ra8a7]} 30. Rg2+ Kf7 31. Rd7+ Ke6 32. Rxc7 Bd4 33. Rxh7 Re3+ 34. Kd1 Bxa7 35. Rg6+ Kf5) 30. Rd7 {[%emt 0:08:07]} Re7 {[%emt 0:01:13]} 31. Rd8+ {[%emt 0:01:35]} Kf7 {[%emt 0:00:08] Black is more active.} 32. Rf2 {[%emt 0:00:59] White is on the road to losing.} (32. Be3 $15) 32... c5 $19 {[%emt 0:00:59]} 33. Bb8 {[%emt 0:00:23]} Rxf2+ 34. Kxf2 {[%emt 0:00:00][%mdl 4096] Endgame [#] KRB-KRB} Bc3 $1 {[%emt 0:01:27] Threatens to win with ...Bd4+.} 35. Bf4 {[%emt 0:01:39] [#]} Bd4+ {[%emt 0:02:13]} 36. Be3 {[%emt 0:00:48]} Re8 {[%emt 0:00:14] Against Bxd4} 37. Rd6 {[%emt 0:06:51]} (37. Rxe8 {keeps fighting.} Kxe8 38. Ke2) 37... Ke7 {[%emt 0:00:55]} 38. Rh6 {[%emt 0:00:26]} (38. Ra6) 38... Ra8 {[%emt 0:00:50]} 39. Rh4 {[%emt 0:01:04]} Rxa2+ {[%emt 0:00:23]} 40. Ke1 {[%emt 0:00:53]} Bxe3 {[%emt 0:03:29]} 41. Rxe4+ {[%emt 0:30:06]} Kd6 {[%emt 0:30:14]} 42. Rxe3 {[%emt 0:00:04] KR-KR} Rh2 {[%emt 0:00:00]} 43. Kd1 {[%emt 0:00:00]} Kd5 {[%emt 0:00:00]} 44. Kc1 {[%emt 0:00:00]} Kd4 {[%emt 0:00:00]} 45. Rg3 {[%emt 0:00:00]} c4 {[%emt 0:00:00][%cal Bc5c4,Bc4c3][%mdl 32]} 46. Rf3 {[%emt 0:00:00]} h5 {[%emt 0:00:00] aiming for ...h4.} 47. Kb1 {[%emt 0:00:00]} Re2 {[%emt 0:00:00]} 48. Rf5 {[%emt 0:00:00]} Re5 {[%emt 0:00:00]} 49. Rf4+ {[%emt 0:00:00]} Kd3 {[%emt 0:00:00]} 50. Ka2 {[%emt 0:00:00]} c3 {[%emt 0:00:00] Weighted Error Value: White=1.03/Black=0.24 (precise)} 0-1

[Event "Israeli Team-ch 2023"]
[Site "Petah Tikva"]
[Date "2023.01.13"]
[Round "2.27"]
[White "Tzidkiya, Yeshaayahu"]
[Black "Bakalchuk, Johnatan"]
[Result "1/2-1/2"]
[ECO "B77"]
[WhiteElo "2415"]
[BlackElo "2442"]
[Annotator "TA"]
[PlyCount "48"]
[EventDate "2023.01.13"]
[EventCountry "ISR"]
[SourceTitle "playchess.com"]
[Source "ChessBase"]
[SourceQuality "1"]
[TimeControl "40/5400+30:1800+30"]

{[%evp 22,48,31,14,22,27,14,14,14,15,34,31,34,22,31,31,62,86,108,69,88,105,100,1,1,1,16,9,16]} 1. e4 {[%emt 0:00:14]} c5 {[%emt 0:01:11]} 2. Nf3 {[%emt 0:00:08]} g6 {[%emt 0:01:05]} 3. d4 {[%emt 0:05:46]} cxd4 {[%emt 0:00:23]} 4. Nxd4 {[%emt 0:02:22]} Bg7 {[%emt 0:00:50]} 5. Nc3 {[%emt 0:00:12]} Nc6 {[%emt 0:00:07]} 6. Be3 {[%emt 0:00:50]} Nf6 {[%emt 0:01:47]} 7. Bc4 {[%emt 0:00:36]} O-O {[%emt 0:00:09]} 8. Bb3 {[%emt 0:00:04]} d6 {[%emt 0:05:30]} 9. f3 {[%emt 0:00:07]} Bd7 {[%emt 0:00:21]} 10. Qd2 {[%emt 0:01:30]} Nxd4 {[%emt 0:03:36]} 11. Bxd4 {[%emt 0:00:11]} b5 {[%emt 0:00:13]} 12. a4 {[%emt 0:08:56]} b4 {[%emt 0:07:18] 12...bxa4 is more fashionable. B77: Sicilian Dragon: Yugoslav Attack, 9 Bc4 sidelines.} 13. Nd5 {[%emt 0:00:10]} Nxd5 $1 {[%emt 0:00:43]} 14. Bxg7 {[%emt 0:00:09]} Kxg7 {[%emt 0:00:51]} 15. exd5 {[%emt 0:00:08]} Qb6 {[%emt 0:11:00]} 16. h4 {[%emt 0:01:10]} h5 {[%emt 0:20:18]} 17. O-O-O {[%emt 0:11:51]} Qa5 {[%emt 0:08:02]} 18. Qd4+ {[%emt 0:05:32]} f6 {[%emt 0:03:01]} 19. g4 {[%emt 0:07:31] [#] aiming for gxh5.} Rh8 $146 {[%emt 0:05:33]} ({Predecessor:} 19... Bxa4 20. Bxa4 Qxa4 21. gxh5 Rac8 22. Rh2 gxh5 23. Kb1 Kf7 24. Re2 Ke8 25. Rde1 Kd8 26. b3 Qa5 27. Rxe7 Qc5 28. Qe4 f5 29. Rd7+ {1-0 Jacko,V (2237)-Brzeski,M (2338) Krakow 5th 2014 (3)}) 20. Rdg1 {[%emt 0:13:10] Hoping for Qe4.} Kf7 {[%emt 0:08:28]} 21. Qe4 {[%emt 0:03:08] gxh5 would be deadly.} Rag8 {[%emt 0:01:18] [#]} 22. Rg3 {[%emt 0:15:22]} (22. Re1 $1 $16 {[%csl Ge1][%cal Re4e7]} Re8 23. Kb1) 22... Rg7 $1 $11 {[%emt 0:01:27] The position is equal.} 23. Kb1 {[%emt 0:12:45]} Qc5 {[%emt 0:01:19]} 24. Rg2 {[%emt 0:00:25]} Kf8 {[%emt 0:02:57] Weighted Error Value: White=0.13 (very precise) /Black=0.06 (flawless)} 1/2-1/2

[Event "Israeli Team-ch 2023"]
[Site "Petah Tikva"]
[Date "2023.01.13"]
[Round "2.28"]
[White "Ben Ari, Yannay"]
[Black "Deutsch, Eyal"]
[Result "1/2-1/2"]
[ECO "A07"]
[WhiteElo "2406"]
[BlackElo "2297"]
[Annotator "TA"]
[PlyCount "49"]
[EventDate "2023.01.13"]
[EventCountry "ISR"]
[SourceTitle "playchess.com"]
[Source "ChessBase"]
[SourceQuality "1"]
[TimeControl "40/5400+30:1800+30"]

{[%evp 9,49,9,10,10,10,20,21,22,24,11,14,24,30,10,11,13,26,4,40,31,52,47,72,75,104,98,64,20,64,27,27,0,6,0,0,-13,31,18,18,0,0,0]} 1. Nf3 {[%emt 0:00:27]} d5 {[%emt 0:00:22]} 2. g3 {[%emt 0:00:12]} c6 {[%emt 0:00:14]} 3. Bg2 {[%emt 0:00:13]} Bg4 {[%emt 0:00:09]} 4. h3 {[%emt 0:01:50]} Bh5 {[%emt 0:00:07]} 5. O-O {[%emt 0:01:06]} Nd7 {[%emt 0:00:06]} 6. d4 {[%emt 0:00:16][%cal Oc2c4] A07: Réti Opening: New York and Capablanca Systems.} e6 {[%emt 0:00:27] [#]} 7. c4 $1 {[%emt 0:00:09]} Ngf6 {[%emt 0:00:20]} (7... Be7 8. cxd5) 8. cxd5 {[%emt 0:00:22]} cxd5 {[%emt 0:00:10]} 9. Nc3 {[%emt 0:02:14]} Be7 {[%emt 0:01:57]} 10. Qb3 {[%emt 0:00:48]} Qb6 {[%emt 0:00:10]} 11. Qxb6 {[%emt 0:01:35]} Nxb6 {[%emt 0:00:08][%cal Bd7b6,Bb6c4,Bc4a5,Ba5c6][%mdl 32]} 12. g4 {[%emt 0:00:17]} Bg6 {[%emt 0:00:05]} 13. Ne5 {[%emt 0:00:14]} Nfd7 {[%emt 0:03:40]} 14. Nxg6 {[%emt 0:02:31]} hxg6 {[%emt 0:00:07] [#]} 15. a4 $146 {[%emt 0:01:42][%cal Ba2a4,Ba4a5,Ba5a6][%mdl 32]} ({Predecessor:} 15. Bf4 O-O 16. a4 g5 17. Bg3 a5 18. e4 Nf6 19. Bc7 Bd8 20. Bd6 Re8 21. e5 Nfd7 22. b3 Nc8 23. Nb5 Ncb6 {½-½ Landa,K (2623)-Ernst,S (2553) Vlissingen HZ op 21st 2017 (8)}) 15... f5 {[%emt 0:04:19] [#]} 16. a5 $1 {[%emt 0:01:46]} Nc4 {[%emt 0:00:53] [#]} 17. a6 $1 {[%emt 0:30:08]} b6 {[%emt 0:00:23]} 18. b3 {[%emt 0:01:10]} (18. Nb5 $5 {[%cal Rb5c7]}) 18... Na5 {[%emt 0:08:34]} 19. Rb1 {[%emt 0:05:13]} Nf6 {[%emt 0:01:56]} 20. f3 {[%emt 0:02:29]} (20. Nb5 {seems wilder.} Kd7 21. Bf4 Rhc8 22. e3) 20... Nc6 {[%emt 0:01:42]} 21. Nb5 {[%emt 0:00:13]} Kd7 {[%emt 0:00:14] Prevents Nc7} 22. Bd2 {[%emt 0:09:01]} Rhc8 {[%emt 0:03:40]} 23. Rfc1 {[%emt 0:09:23]} Ne8 {[%emt 0:02:13]} 24. e3 {[%emt 0:10:52]} Bb4 {[%emt 0:05:38]} 25. Bc3 {[%emt 0:04:47] Weighted Error Value: White=0.09 (flawless) /Black=0.10 (very precise)} 1/2-1/2

[Event "Israeli Team-ch 2023"]
[Site "Petah Tikva"]
[Date "2023.01.13"]
[Round "2.29"]
[White "Aizenberg, Benny"]
[Black "Karp, Ilya"]
[Result "1-0"]
[ECO "B62"]
[WhiteElo "2348"]
[BlackElo "2392"]
[Annotator "TA"]
[PlyCount "66"]
[EventDate "2023.01.13"]
[EventCountry "ISR"]
[SourceTitle "playchess.com"]
[Source "ChessBase"]
[SourceQuality "1"]
[TimeControl "40/5400+30:1800+30"]

{[%evp 16,66,39,29,27,22,57,60,116,121,105,121,112,28,52,52,79,97,100,93,105,104,141,132,177,101,135,128,158,-179,-162,-353,-78,-70,-66,-45,-63,-68,295,246,245,245,243,214,21,238,228,211,212,195,326,326,834]} 1. e4 {[%emt 0:00:02]} c5 {[%emt 0:00:06]} 2. Nf3 {[%emt 0:00:04]} d6 {[%emt 0:00:05]} 3. d4 {[%emt 0:00:05]} cxd4 {[%emt 0:00:05]} 4. Nxd4 {[%emt 0:00:03]} Nf6 {[%emt 0:00:06]} 5. Nc3 {[%emt 0:00:04]} Nc6 {[%emt 0:00:06]} 6. Bg5 {[%emt 0:00:03]} e6 {[%emt 1:33:02]} 7. Qd3 {[%emt 0:00:02]} Bd7 {[%emt 0:00:00]} 8. O-O-O {[%emt 0:00:05] 8.Ndb5 gains popularity.} a6 {[%emt 0:00:00]} 9. f4 {[%emt 0:00:09]} Be7 {[%emt 0:00:00] B62: Sicilian: Richter-Rauzer: 6...e6: Unusual White 7th moves.} 10. Nf3 {[%emt 0:00:05]} b5 {[%emt 0:00:00] [#]} 11. e5 $146 {[%emt 0:02:45]} ({Predecessor:} 11. h3 h6 12. Bh4 Rc8 13. e5 Nb4 14. Qd4 Nfd5 15. Bxe7 Qxe7 16. Nxd5 Nxd5 17. Bd3 dxe5 18. Nxe5 {½-½ Van Foreest,M (2199)-Goossens,H (2131) London She Plays To Win 1st 2022 (6)}) 11... b4 {[%emt 0:00:00]} (11... dxe5 $14 12. Nxe5 Nd5 13. Nxd7 Qxd7) 12. exf6 $16 {[%emt 0:02:22]} gxf6 {[%emt 0:00:00]} 13. Ne4 {[%emt 0:00:11][%cal Og5f6]} d5 {[%emt 0:00:00]} 14. Bh6 {[%emt 0:03:35]} ({White should try} 14. Nxf6+ $16 Bxf6 15. Qe3) 14... dxe4 {[%emt 0:00:00]} 15. Qxe4 {[%emt 0:00:01]} f5 {[%emt 0:00:00]} 16. Qe3 {[%emt 0:01:58] White has more active pieces. The black rooks are badly placed.} Qc7 {[%emt 0:00:00]} 17. Kb1 {[%emt 0:05:02][%cal Og2g4]} Rg8 {[%emt 0:00:00]} 18. Bg5 {[%emt 0:02:49][%cal Bh6g5,Bg5h4,Bh4g3][%mdl 32]} f6 {[%emt 0:00:00]} 19. Bh4 {[%emt 0:02:48]} Kf7 {[%emt 0:00:00]} 20. Bd3 {[%emt 0:06:28]} (20. Bc4 $18) 20... Rxg2 {[%emt 0:00:00]} 21. Bg3 {[%emt 0:01:27]} b3 {[%emt 0:00:00]} 22. axb3 {[%emt 0:07:39]} (22. cxb3 $16 {Strongly threatening Nh4.} Rd8 23. Nh4 (23. Bxa6 Ra8 $17)) 22... Nb4 $19 {[%emt 0:00:00]} 23. Ne1 $2 {[%emt 0:01:27] [#]} (23. Rd2 Bc5 24. Nd4 Nd5 $19) (23. c3 Nxd3 24. Rxd3) 23... Bc5 $2 {[%emt 0:00:00]} (23... Bb5 $1 $19 24. c4 (24. Nxg2 $2 {too greedy.} Bxd3 $19) 24... Bc6 25. Nxg2 Qa5) 24. Qf3 $17 {[%emt 0:00:26]} Bc6 {[%emt 0:00:00]} 25. Qh5+ {[%emt 0:00:15]} Kg7 $1 {[%emt 0:00:00][%cal Oc7a5] ...Qa5! would be deadly.} 26. Nxg2 {[%emt 0:00:06]} Bxg2 $4 {[%emt 0:00:00][%mdl 8192] [#]} (26... Qa5 $1 $15 {stays ahead.} 27. Rhf1 Qa2+ 28. Kc1 Nxd3+ 29. Rxd3 (29. cxd3 $2 Bxg2 30. Bf2 Bb4 $19) 29... Qa1+ {[%mdl 64] Skewer} 30. Kd2 Qxf1) 27. Rhg1 $1 {[%emt 0:03:03][%mdl 512]} Bxg1 {[%emt 0:00:00]} 28. Rxg1 {[%emt 0:00:02][%cal Bd1g1,Bg1g2,Bg2d2][%mdl 32]} Qa5 {[%emt 0:05:09] aiming for ...Qa2+.} (28... Nxd3 $2 29. Rxg2 Qb7 30. Rg1 Nxf4 31. Bxf4+ $18) 29. Rxg2 {[%emt 0:02:26] White wants to mate with Bh4+.} Qa2+ {[%emt 0:00:02]} 30. Kc1 {[%emt 0:00:01][%cal Bb1c1,Bc1d2,Bd2d3][%mdl 32] Threatening mate with Bf2+.} Nxd3+ {[%emt 0:00:01]} 31. Kd2 $1 {[%emt 0:00:14] White threatens Bf2+ and mate.} (31. cxd3 $2 {loses.} Qa1+ 32. Kd2 Qxb2+ 33. Ke3 Qxg2 $19) 31... Qxb2 {[%emt 0:00:12] White must now prevent ...Nb4.} (31... Nxb2 {is a self mate.} 32. Bf2+ Kh8 33. Bd4 Nc4+ 34. bxc4) 32. Kxd3 {[%emt 0:01:48] Bf2+ is the strong threat.} Kh8 {[%emt 0:04:35]} (32... Rd8+ $142 33. Ke2 Qxc2+ 34. Kf1 Qd3+ 35. Kg1 Kh8) 33. Rd2 $18 {[%emt 0:02:45] And now Ke2 would win.} Qa1 $2 {[%emt 0:03:31] Excellently played by Aizenberg!   Weighted Error Value: White=0.42/Black=0.40} (33... Rd8+ 34. Ke2 Rxd2+ 35. Kxd2 Qd4+ 36. Ke2 Qc3 37. Qe8+ Kg7 38. Qd7+ Kg6) 1-0